[Event "44th Chess Olympiad Open 2022"]
[Site "Chennai"]
[Date "2022.08.07"]
[Round "9.68"]
[White "Miswadah, Baha"]
[Black "Nyambalo, Joseph Xavier"]
[Result "1-0"]
[WhiteElo "1985"]
[BlackElo "1981"]
[Annotator "NA RC"]
[PlyCount "135"]
[EventDate "2022.??.??"]
[TimeControl "60"]

1. d4 {[%emt 0:01:43]} Nf6 {[%emt 0:00:05]} 2. Bf4 {[%emt 0:00:08]} d6 {
[%emt 0:00:52]} 3. e3 {[%emt 0:00:29]} g6 {[%emt 0:00:06]} 4. Be2 {[%emt 0:00:
00]} Bg7 {[%emt 0:00:11]} 5. Nf3 {[%emt 0:00:16]} c5 {[%emt 0:00:22]} 6. h3 {
[%emt 0:04:58]} cxd4 {[%emt 0:00:32]} 7. exd4 {[%emt 0:00:35]} Qb6 {[%emt 0:00:
00]} 8. Na3 {[%emt 0:11:12]} Bd7 {[%emt 0:06:27]} 9. Nc4 {[%emt 0:00:49]} Qc7 {
[%emt 0:00:31]} 10. O-O {[%emt 0:01:36]} O-O {[%emt 0:00:25]} 11. Ne3 {[%emt 0:
00:00]} Nc6 {[%emt 0:03:39]} 12. c4 {[%emt 0:01:35]} Qb6 {[%emt 0:11:54]} 13.
Rb1 {[%emt 0:05:05]} Nxd4 {[%emt 0:07:21]} 14. Nxd4 {[%emt 0:02:24]} e5 {
[%emt 0:00:05]} 15. c5 {[%emt 0:03:55]} dxc5 {[%emt 0:05:45]} 16. Bxe5 {
[%emt 0:01:53]} cxd4 {[%emt 0:00:26]} 17. Bxd4 {[%emt 0:00:17]} Qd8 {[%emt 0:
00:00]} 18. Bf3 {[%emt 0:03:22]} Bb5 {[%emt 0:14:33]} 19. Re1 {[%emt 0:01:54]}
Qd7 {[%emt 0:00:42]} 20. Nd5 {[%emt 0:09:01]} Nxd5 {[%emt 0:01:56]} 21. Bxg7 {
[%emt 0:00:09]} Kxg7 {[%emt 0:00:43]} 22. Qxd5 {[%emt 0:00:30]} Qxd5 {[%emt 0:
00:00]} 23. Bxd5 {[%emt 0:00:02]} Bc6 {[%emt 0:00:46]} 24. Bxc6 {[%emt 0:00:41]
} bxc6 {[%emt 0:00:02]} 25. Rbc1 {[%emt 0:00:26]} Rfb8 {[%emt 0:02:14]} 26. b3
{[%emt 0:00:35]} Rb6 {[%emt 0:00:14]} 27. Re7 {[%emt 0:00:44]} Ra6 {[%emt 0:00:
00]} 28. Rc2 {[%emt 0:00:47]} Rd8 {[%emt 0:00:04]} 29. Rc7 {[%emt 0:02:29]}
Rd1+ {[%emt 0:00:25]} 30. Kh2 {[%emt 0:00:18]} Rd6 {[%emt 0:04:26]} 31. Re2 {
[%emt 0:03:22]} Rf6 {[%emt 0:00:44]} 32. g4 {[%emt 0:01:29]} h5 {[%emt 0:03:48]
} 33. g5 {[%emt 0:03:41]} Rf5 {[%emt 0:00:42]} 34. h4 {[%emt 0:00:42]} c5 {
[%emt 0:02:56]} 35. Kg3 {[%emt 0:01:05]} Rd6 {[%emt 0:03:20]} 36. Rxa7 {
[%emt 0:16:26]} c4 {[%emt 0:00:53]} 37. bxc4 {[%emt 0:00:50]} Rd4 {[%emt 0:00:
00]} 38. f3 {[%emt 0:01:47]} Rxc4 {[%emt 0:00:37]} 39. Re3 {[%emt 0:01:24]}
Rff4 {[%emt 0:03:40]} 40. Ra8 {[%emt 0:03:47]} Ra4 {[%emt 0:00:36]} 41. Rb8 {
[%emt 0:32:41]} Rfb4 {[%emt 0:30:22]} 42. Rxb4 {[%emt 0:00:25]} Rxb4 {[%emt 0:
00:00]} 43. Re4 {[%emt 0:00:38]} Rb1 {[%emt 0:01:00]} 44. a4 {[%emt 0:00:14]}
Rh1 {[%emt 0:02:17]} 45. Kf2 {[%emt 0:01:21]} f6 {[%emt 0:01:22]} 46. Kg2 {
[%emt 0:05:04]} Ra1 {[%emt 0:00:41]} 47. f4 {[%emt 0:01:24]} fxg5 {[%emt 0:00:
00]} 48. fxg5 {[%emt 0:00:20]} Ra3 {[%emt 0:01:08]} 49. Rf4 {[%emt 0:00:23]}
Kg8 {[%emt 0:02:49]} 50. Kf2 {[%emt 0:00:11]} Kg7 {[%emt 0:00:00]} 51. Ke2 {
[%emt 0:00:00]} Kg8 {[%emt 0:00:00]} 52. Kd2 {[%emt 0:00:00]} Kg7 {[%emt 0:00:
00]} 53. Kc2 {[%emt 0:00:00]} Rg3 {[%emt 0:00:00]} 54. Rc4 {[%emt 0:00:00]} Kf7
{[%emt 0:00:00]} 55. Kb2 {[%emt 0:00:00]} Ke6 {[%emt 0:00:00]} 56. a5 {[%emt 0:
00:00]} Kd5 {[%emt 0:00:00]} 57. Ra4 {[%emt 0:00:00]} Rg2+ {[%emt 0:00:00]} 58.
Kc3 {[%emt 0:00:42]} Rg3+ {[%emt 0:00:00]} 59. Kb4 {[%emt 0:00:00]} Kc6 {
[%emt 0:00:00]} 60. a6 {[%emt 0:00:00]} Kb6 {[%emt 0:00:00]} 61. a7 {[%emt 0:
00:00]} Rg4+ {[%emt 0:00:00]} 62. Kb3 {[%emt 0:00:00]} Rxa4 {[%emt 0:00:00]}
63. Kxa4 {[%emt 0:00:22]} Kxa7 {[%emt 0:00:00]} 64. Ka5 {[%emt 0:00:00]} Kb7 {
[%emt 0:00:00]} 65. Kb5 {[%emt 0:00:00]} Kc7 {[%emt 0:00:00]} 66. Kc5 {[%emt 0:
00:00]} Kd7 {[%emt 0:00:00]} 67. Kd5 {[%emt 0:00:00]} Ke7 {[%emt 0:00:00]} 68.
Ke5 {[%emt 0:00:00]} 1-0

[Event "44th Chess Olympiad Open 2022"]
[Site "Chennai"]
[Date "2022.08.07"]
[Round "9.68"]
[White "Matola Ernest"]
[Black "Isam, Gaith"]
[Result "1-0"]
[WhiteElo "1964"]
[BlackElo "1828"]
[Annotator "NA"]
[PlyCount "106"]
[EventDate "2022.??.??"]
[TimeControl "60"]

1. Nf3 {[%emt 0:00:30]} f5 {[%emt 0:05:36]} 2. d4 {[%emt 0:00:13]} e6 {[%emt 0:
00:00]} 3. g3 {[%emt 0:00:22]} Nf6 {[%emt 0:00:13]} 4. Bg2 {[%emt 0:00:12]} d5
{[%emt 0:00:55]} 5. O-O {[%emt 0:00:25]} Bd6 {[%emt 0:00:14]} 6. c4 {[%emt 0:
00:00]} c6 {[%emt 0:00:05]} 7. Nc3 {[%emt 0:00:55]} O-O {[%emt 0:02:00]} 8. Bg5
{[%emt 0:01:15]} Nbd7 {[%emt 0:00:21]} 9. c5 {[%emt 0:00:34]} Bc7 {[%emt 0:00:
00]} 10. b4 {[%emt 0:00:24]} a6 {[%emt 0:10:48]} 11. a4 {[%emt 0:00:44]} h6 {
[%emt 0:00:37]} 12. Bd2 {[%emt 0:00:59]} e5 {[%emt 0:02:22]} 13. e3 {[%emt 0:
00:00]} e4 {[%emt 0:05:16]} 14. Ne1 {[%emt 0:00:24]} Qe8 {[%emt 0:00:40]} 15.
b5 {[%emt 0:00:33]} axb5 {[%emt 0:08:10]} 16. axb5 {[%emt 0:00:35]} Rxa1 {
[%emt 0:00:05]} 17. Qxa1 {[%emt 0:00:12]} Nh7 {[%emt 0:02:44]} 18. f4 {[%emt 0:
00:00]} exf3 {[%emt 0:04:59]} 19. Nxf3 {[%emt 0:00:14]} Ng5 {[%emt 0:02:34]}
20. Nxg5 {[%emt 0:02:53]} hxg5 {[%emt 0:00:15]} 21. Qa4 {[%emt 0:01:32]} Nf6 {
[%emt 0:01:30]} 22. b6 {[%emt 0:02:37]} Bd8 {[%emt 0:03:21]} 23. Qa8 {[%emt 0:
00:00]} Be7 {[%emt 0:00:56]} 24. Ra1 {[%emt 0:02:26]} Qd7 {[%emt 0:06:00]} 25.
Qb8 {[%emt 0:03:58]} Bxc5 {[%emt 0:02:11]} 26. dxc5 {[%emt 0:00:17]} d4 {
[%emt 0:00:15]} 27. Nd1 {[%emt 0:00:19]} dxe3 {[%emt 0:05:01]} 28. Bxe3 {
[%emt 0:01:12]} Ng4 {[%emt 0:00:24]} 29. Qd6 {[%emt 0:00:44]} Qe8 {[%emt 0:00:
00]} 30. Bf2 {[%emt 0:01:24]} f4 {[%emt 0:03:24]} 31. gxf4 {[%emt 0:04:26]}
gxf4 {[%emt 0:01:44]} 32. h3 {[%emt 0:01:45]} Rf6 {[%emt 0:11:16]} 33. Qd2 {
[%emt 0:01:04]} Nxf2 {[%emt 0:05:03]} 34. Nxf2 {[%emt 0:00:51]} f3 {[%emt 0:00:
00]} 35. Bf1 {[%emt 0:00:50]} Qe5 {[%emt 0:02:54]} 36. Ra8 {[%emt 0:01:02]} Rf8
{[%emt 0:01:50]} 37. Qd6 {[%emt 0:00:44]} Qg5+ {[%emt 0:01:04]} 38. Kh2 {
[%emt 0:00:50]} Qe3 {[%emt 0:01:50]} 39. Ng4 {[%emt 0:01:51]} Qe8 {[%emt 0:00:
00]} 40. Qe5 {[%emt 0:01:19]} Qf7 {[%emt 0:00:56]} 41. Qd4 {[%emt 0:34:28]} f2
{[%emt 0:09:33]} 42. Qc4 {[%emt 0:00:00]} Be6 {[%emt 0:03:08]} 43. Rxf8+ {
[%emt 0:00:00]} Kxf8 {[%emt 0:00:07]} 44. Qd4 {[%emt 0:01:09]} Ke8 {[%emt 0:00:
00]} 45. Qxf2 {[%emt 0:00:00]} Qh5 {[%emt 0:00:56]} 46. Qe3 {[%emt 0:00:00]}
Kd7 {[%emt 0:02:44]} 47. Kg3 {[%emt 0:00:00]} Qd5 {[%emt 0:02:43]} 48. Qd3 {
[%emt 0:00:00]} Bf5 {[%emt 0:00:26]} 49. Qxd5+ {[%emt 0:00:00]} cxd5 {[%emt 0:
00:00]} 50. Bb5+ {[%emt 0:00:00]} Kd8 {[%emt 0:01:15]} 51. Kf4 {[%emt 0:00:00]}
Bd7 52. Bxd7 {[%emt 0:00:00]} Kxd7 {[%emt 0:00:01]} 53. Ke5 {[%emt 0:00:00]}
Kc6 {[%emt 0:00:06]} 1-0

[Event "44th Chess Olympiad Open 2022"]
[Site "Chennai"]
[Date "2022.08.07"]
[Round "9.68"]
[White "seder mohamad"]
[Black "Chimthere, Alfred Charles"]
[Result "0-1"]
[WhiteElo "1950"]
[BlackElo "2035"]
[Annotator "NA"]
[PlyCount "74"]
[EventDate "2022.??.??"]
[TimeControl "60"]

1. e4 {[%emt 0:01:32]} c6 {[%emt 0:00:46]} 2. Nf3 {[%emt 0:00:12]} d5 {[%emt 0:
00:00]} 3. Nc3 {[%emt 0:00:08]} a6 {[%emt 0:03:49]} 4. d4 {[%emt 0:04:24]} Bg4
{[%emt 0:00:33]} 5. Be3 {[%emt 0:05:31]} e6 {[%emt 0:01:05]} 6. Bd3 {[%emt 0:
00:00]} Nf6 {[%emt 0:02:29]} 7. e5 {[%emt 0:10:55]} Nfd7 {[%emt 0:00:27]} 8. h3
{[%emt 0:02:16]} Bxf3 {[%emt 0:03:01]} 9. Qxf3 {[%emt 0:00:52]} c5 {[%emt 0:00:
00]} 10. Qf4 {[%emt 0:12:08]} Nc6 {[%emt 0:01:50]} 11. O-O {[%emt 0:01:56]}
cxd4 {[%emt 0:01:00]} 12. Bxd4 {[%emt 0:00:13]} Nxd4 {[%emt 0:00:42]} 13. Qxd4
{[%emt 0:00:03]} Bc5 {[%emt 0:02:23]} 14. Qg4 {[%emt 0:02:38]} O-O {[%emt 0:00:
00]} 15. Rae1 {[%emt 0:01:50]} Qc7 {[%emt 0:00:41]} 16. Qg5 {[%emt 0:02:36]} h6
{[%emt 0:01:22]} 17. Qh5 {[%emt 0:02:26]} Bd4 {[%emt 0:03:52]} 18. Ne2 {
[%emt 0:07:43]} Bxe5 {[%emt 0:01:51]} 19. c3 {[%emt 0:04:00]} Nf6 {[%emt 0:00:
00]} 20. Qh4 {[%emt 0:02:52]} Rfe8 {[%emt 0:05:29]} 21. f4 {[%emt 0:07:38]} Bd6
{[%emt 0:00:33]} 22. g4 {[%emt 0:02:33]} Ne4 {[%emt 0:05:05]} 23. Bxe4 {
[%emt 0:07:06]} dxe4 {[%emt 0:00:09]} 24. g5 {[%emt 0:00:54]} hxg5 {[%emt 0:00:
00]} 25. fxg5 {[%emt 0:00:25]} e3 {[%emt 0:02:23]} 26. Nf4 {[%emt 0:03:34]} g6
{[%emt 0:01:41]} 27. Re2 {[%emt 0:03:11]} Rad8 {[%emt 0:00:48]} 28. b4 {
[%emt 0:01:10]} Qxc3 {[%emt 0:01:34]} 29. Nxg6 {[%emt 0:01:39]} fxg6 {[%emt 0:
00:00]} 30. Rf6 {[%emt 0:00:16]} Be5 {[%emt 0:01:33]} 31. Rxg6+ {[%emt 0:06:40]
} Bg7 {[%emt 0:00:08]} 32. Qh5 {[%emt 0:01:00]} Rf8 {[%emt 0:00:42]} 33. Rc2 {
[%emt 0:01:56]} Qe1+ {[%emt 0:00:20]} 34. Kg2 {[%emt 0:01:02]} Rf2+ {[%emt 0:
00:00]} 35. Rxf2 {[%emt 0:00:03]} Qxf2+ {[%emt 0:00:10]} 36. Kh1 {[%emt 0:00:
00]} Qf1+ {[%emt 0:00:12]} 37. Kh2 {[%emt 0:00:02]} Rd2+ {[%emt 0:00:31]} 0-1

[Event "44th Chess Olympiad Open 2022"]
[Site "Chennai"]
[Date "2022.08.07"]
[Round "9.69"]
[White "Jean Louis, Marckens"]
[Black "Ballebako, Kokou Difendramakad"]
[Result "1-0"]
[WhiteElo "2050"]
[BlackElo "1524"]
[Annotator "NA"]
[PlyCount "95"]
[EventDate "2022.??.??"]
[TimeControl "60"]

1. e4 {[%emt 0:00:43]} d6 {[%emt 0:00:30]} 2. d4 {[%emt 0:00:44]} Nf6 {[%emt 0:
00:00]} 3. Nc3 {[%emt 0:00:34]} g6 {[%emt 0:01:11]} 4. f4 {[%emt 0:01:45]} Bg7
{[%emt 0:04:15]} 5. Nf3 {[%emt 0:02:29]} O-O {[%emt 0:01:01]} 6. Bc4 {[%emt 0:
00:00]} c5 {[%emt 0:03:17]} 7. e5 {[%emt 0:04:40]} Nh5 {[%emt 0:04:23]} 8. dxc5
{[%emt 0:02:16]} dxc5 {[%emt 0:04:15]} 9. Qxd8 {[%emt 0:00:59]} Rxd8 {[%emt 0:
00:00]} 10. Ng5 {[%emt 0:02:23]} Rf8 {[%emt 0:05:39]} 11. Nd5 {[%emt 0:00:00]}
Nc6 {[%emt 0:04:14]} 12. Nc7 {[%emt 0:02:08]} Rb8 {[%emt 0:05:05]} 13. Be3 {
[%emt 0:02:58]} h6 {[%emt 0:08:00]} 14. Nxf7 {[%emt 0:07:02]} Rxf7 {[%emt 0:00:
00]} 15. Bxf7+ {[%emt 0:00:11]} Kxf7 {[%emt 0:00:46]} 16. Bxc5 {[%emt 0:01:35]}
Bf5 {[%emt 0:01:50]} 17. O-O {[%emt 0:01:17]} Rc8 {[%emt 0:03:24]} 18. Nb5 {
[%emt 0:04:48]} a6 {[%emt 0:02:41]} 19. Na3 {[%emt 0:01:16]} b5 {[%emt 0:02:47]
} 20. c3 {[%emt 0:01:36]} Bf8 {[%emt 0:01:51]} 21. Rae1 {[%emt 0:00:47]} Ng7 {
[%emt 0:01:43]} 22. Nb1 {[%emt 0:01:51]} Ne6 {[%emt 0:03:50]} 23. Be3 {[%emt 0:
00:00]} Na5 {[%emt 0:01:45]} 24. b3 {[%emt 0:05:12]} Nc7 {[%emt 0:04:17]} 25.
Bb6 {[%emt 0:04:45]} Nc6 {[%emt 0:03:19]} 26. c4 {[%emt 0:04:13]} bxc4 {
[%emt 0:04:56]} 27. bxc4 {[%emt 0:00:00]} Na8 {[%emt 0:01:10]} 28. Be3 {
[%emt 0:00:32]} e6 {[%emt 0:03:47]} 29. Rd1 {[%emt 0:02:12]} Ke8 {[%emt 0:00:
00]} 30. h3 {[%emt 0:02:45]} h5 {[%emt 0:00:19]} 31. Nd2 {[%emt 0:01:27]} Bh6 {
[%emt 0:02:44]} 32. Nf3 {[%emt 0:02:39]} Nb4 {[%emt 0:02:54]} 33. a3 {[%emt 0:
00:00]} Nc2 {[%emt 0:00:00]} 34. Bc1 {[%emt 0:00:21]} Rxc4 {[%emt 0:01:32]} 35.
Rd6 {[%emt 0:00:49]} Nc7 {[%emt 0:01:20]} 36. Rfd1 {[%emt 0:01:23]} Nd5 {
[%emt 0:02:34]} 37. Rxa6 {[%emt 0:01:58]} Nce3 {[%emt 0:03:02]} 38. Bxe3 {
[%emt 0:01:48]} Nxe3 {[%emt 0:00:10]} 39. Ra8+ {[%emt 0:00:33]} Ke7 {[%emt 0:
00:00]} 40. Ra7+ {[%emt 0:03:57]} Ke8 {[%emt 0:00:00]} 41. Rdd7 {[%emt 0:37:32]
} Bf8 {[%emt 0:06:18]} 42. Rh7 {[%emt 0:06:59]} Rc8 {[%emt 0:27:05]} 43. Ng5 {
[%emt 0:04:13]} Nd5 {[%emt 0:02:22]} 44. Rab7 {[%emt 0:02:49]} Rc1+ {[%emt 0:
00:00]} 45. Kh2 {[%emt 0:00:26]} Rc8 {[%emt 0:00:30]} 46. Nf7 {[%emt 0:10:52]}
Rc7 47. Nd6+ Bxd6 48. Rb8+ 1-0

[Event "44th Chess Olympiad Open 2022"]
[Site "Chennai"]
[Date "2022.08.07"]
[Round "9.69"]
[White "Etienne, Angelo"]
[Black "Strovsky, Mikhail"]
[Result "1/2-1/2"]
[WhiteElo "2036"]
[BlackElo "2158"]
[Annotator "RC"]
[PlyCount "64"]
[EventDate "2022.??.??"]
[TimeControl "60"]

1. d4 {[%emt 0:00:02]} Nf6 {[%emt 0:00:31]} 2. Nf3 {[%emt 0:01:28]} d5 {
[%emt 0:01:13]} 3. c4 {[%emt 0:00:31]} e6 {[%emt 0:00:35]} 4. Nc3 {[%emt 0:00:
00]} c5 {[%emt 0:00:07]} 5. Bg5 {[%emt 0:00:46]} Be7 {[%emt 0:00:23]} 6. e3 {
[%emt 0:00:07]} O-O {[%emt 0:00:27]} 7. dxc5 {[%emt 0:01:26]} Bxc5 {[%emt 0:00:
00]} 8. Bxf6 {[%emt 0:00:57]} Qxf6 {[%emt 0:00:29]} 9. cxd5 {[%emt 0:00:05]}
exd5 {[%emt 0:00:50]} 10. Qxd5 {[%emt 0:00:38]} Bb4 {[%emt 0:00:52]} 11. Qb3 {
[%emt 0:01:13]} Nc6 {[%emt 0:01:02]} 12. a3 {[%emt 0:08:14]} Be6 {[%emt 0:00:
00]} 13. Qc2 {[%emt 0:00:34]} Ba5 {[%emt 0:01:36]} 14. Bd3 {[%emt 0:00:52]} h6
{[%emt 0:01:00]} 15. O-O {[%emt 0:00:13]} Ne5 {[%emt 0:01:13]} 16. Nxe5 {
[%emt 0:01:59]} Qxe5 {[%emt 0:00:21]} 17. Nb5 {[%emt 0:08:39]} Bb6 {[%emt 0:00:
00]} 18. Qc3 {[%emt 0:10:04]} Qg5 {[%emt 0:03:05]} 19. Rfe1 {[%emt 0:05:37]}
Rac8 {[%emt 0:01:15]} 20. Qb4 {[%emt 0:03:22]} a6 {[%emt 0:03:42]} 21. Nc3 {
[%emt 0:01:27]} Ba5 {[%emt 0:01:38]} 22. Qe4 {[%emt 0:01:22]} g6 {[%emt 0:00:
00]} 23. Bf1 {[%emt 0:01:01]} Rc6 {[%emt 0:14:46]} 24. Rec1 {[%emt 0:03:21]}
Rfc8 {[%emt 0:05:23]} 25. Ne2 {[%emt 0:00:58]} Bd5 {[%emt 0:25:45]} 26. Qa4 {
[%emt 0:01:30]} Rxc1 {[%emt 0:00:54]} 27. Rxc1 {[%emt 0:00:34]} Rxc1 {[%emt 0:
00:00]} 28. Nxc1 {[%emt 0:00:02]} Bc6 {[%emt 0:00:24]} 29. Qc2 {[%emt 0:00:35]}
Bc7 {[%emt 0:03:30]} 30. Ne2 {[%emt 0:01:06]} Qe5 {[%emt 0:01:04]} 31. Ng3 {
[%emt 0:00:34]} h5 {[%emt 0:01:57]} 32. Bc4 {[%emt 0:00:26]} Kg7 {[%emt 0:00:
00]} 1/2-1/2

[Event "44th Chess Olympiad Open 2022"]
[Site "Chennai"]
[Date "2022.08.07"]
[Round "9.69"]
[White "Tchouka, Yakini"]
[Black "Gabriel, Davidson"]
[Result "0-1"]
[WhiteElo "1934"]
[BlackElo "1915"]
[Annotator "NA RC"]
[PlyCount "84"]
[EventDate "2022.??.??"]
[TimeControl "60"]

1. e4 {[%emt 0:00:05]} e5 {[%emt 0:00:28]} 2. Nf3 {[%emt 0:00:09]} Nc6 {
[%emt 0:00:13]} 3. Bc4 {[%emt 0:00:19]} Bc5 {[%emt 0:00:18]} 4. d3 {[%emt 0:00:
00]} h6 {[%emt 0:02:38]} 5. c3 {[%emt 0:02:04]} Nf6 {[%emt 0:00:38]} 6. O-O {
[%emt 0:02:59]} Qe7 {[%emt 0:03:35]} 7. b4 {[%emt 0:05:28]} Bb6 {[%emt 0:00:19]
} 8. a4 {[%emt 0:00:12]} a6 {[%emt 0:00:55]} 9. Be3 {[%emt 0:02:50]} Ba7 {
[%emt 0:10:09]} 10. Nbd2 {[%emt 0:07:02]} d6 {[%emt 0:00:45]} 11. Bxa7 {
[%emt 0:14:23]} Nxa7 {[%emt 0:00:24]} 12. d4 {[%emt 0:02:23]} O-O {[%emt 0:00:
00]} 13. dxe5 {[%emt 0:05:20]} dxe5 {[%emt 0:00:12]} 14. Qe2 {[%emt 0:06:43]}
Bg4 {[%emt 0:04:25]} 15. h3 {[%emt 0:02:01]} Bh5 {[%emt 0:00:33]} 16. Rfd1 {
[%emt 0:02:11]} a5 {[%emt 0:01:24]} 17. b5 {[%emt 0:02:12]} Nc8 {[%emt 0:00:16]
} 18. Nf1 {[%emt 0:08:34]} Nb6 {[%emt 0:04:44]} 19. Bb3 {[%emt 0:00:42]} Bxf3 {
[%emt 0:01:55]} 20. Qxf3 {[%emt 0:00:44]} g6 {[%emt 0:00:16]} 21. Ne3 {[%emt 0:
00:00]} Kg7 {[%emt 0:00:57]} 22. Nd5 {[%emt 0:03:58]} Nfxd5 {[%emt 0:00:25]}
23. exd5 {[%emt 0:00:04]} Rad8 {[%emt 0:00:33]} 24. Qe3 {[%emt 0:02:37]} Qd6 {
[%emt 0:00:47]} 25. c4 {[%emt 0:01:54]} Nd7 {[%emt 0:00:10]} 26. h4 {[%emt 0:
00:00]} f5 {[%emt 0:01:03]} 27. Re1 {[%emt 0:00:43]} Nc5 {[%emt 0:00:19]} 28.
Bc2 {[%emt 0:00:45]} Rde8 {[%emt 0:00:24]} 29. g3 {[%emt 0:02:10]} f4 {[%emt 0:
00:00]} 30. Qc3 {[%emt 0:04:36]} b6 {[%emt 0:00:39]} 31. Re2 {[%emt 0:01:46]}
h5 {[%emt 0:04:04]} 32. Rae1 {[%emt 0:01:05]} Nd7 {[%emt 0:00:21]} 33. Re4 {
[%emt 0:03:59]} fxg3 {[%emt 0:00:36]} 34. Qxg3 {[%emt 0:00:53]} Rf6 {[%emt 0:
00:00]} 35. Qg5 {[%emt 0:04:02]} Ref8 {[%emt 0:00:21]} 36. f4 {[%emt 0:02:04]}
Rxf4 {[%emt 0:00:21]} 37. Rxf4 {[%emt 0:02:05]} Rxf4 {[%emt 0:02:09]} 38. Kh1 {
[%emt 0:00:51]} Rg4 {[%emt 0:00:33]} 39. Qd8 {[%emt 0:00:44]} Rxc4 {[%emt 0:00:
00]} 40. Be4 {[%emt 0:02:03]} Nc5 {[%emt 0:02:34]} 41. Qxd6 {[%emt 0:32:12]}
cxd6 42. Bb1 {[%emt 0:02:09]} Rxh4+ {[%emt 0:32:55]} 0-1

[Event "44th Chess Olympiad Open 2022"]
[Site "Chennai"]
[Date "2022.08.07"]
[Round "9.69"]
[White "Egbe, Kossi Thierry"]
[Black "Guillaume, Jude Mirvens"]
[Result "0-1"]
[WhiteElo "1703"]
[BlackElo "2022"]
[Annotator "NA"]
[PlyCount "82"]
[EventDate "2022.??.??"]
[TimeControl "60"]

1. e4 {[%emt 0:00:06]} c5 {[%emt 0:00:26]} 2. Nf3 {[%emt 0:00:11]} d6 {[%emt 0:
00:00]} 3. d4 {[%emt 0:00:36]} cxd4 {[%emt 0:00:02]} 4. Nxd4 {[%emt 0:00:10]}
Nf6 {[%emt 0:00:08]} 5. Nc3 {[%emt 0:00:43]} a6 {[%emt 0:00:16]} 6. Be2 {
[%emt 0:01:56]} e6 {[%emt 0:00:24]} 7. Be3 {[%emt 0:00:31]} Qc7 {[%emt 0:00:48]
} 8. O-O {[%emt 0:01:14]} Nbd7 {[%emt 0:02:41]} 9. f4 {[%emt 0:05:40]} Be7 {
[%emt 0:00:18]} 10. f5 {[%emt 0:01:50]} e5 {[%emt 0:05:57]} 11. Nb3 {[%emt 0:
00:00]} b5 {[%emt 0:00:15]} 12. a3 {[%emt 0:07:30]} Bb7 {[%emt 0:00:30]} 13.
Bf3 {[%emt 0:00:22]} Rc8 {[%emt 0:02:11]} 14. Rf2 {[%emt 0:05:05]} Nb6 {
[%emt 0:01:06]} 15. Na5 {[%emt 0:01:46]} Ba8 {[%emt 0:00:18]} 16. g4 {[%emt 0:
00:00]} h6 {[%emt 0:02:06]} 17. h4 {[%emt 0:02:50]} Nfd7 {[%emt 0:00:16]} 18.
g5 {[%emt 0:03:41]} hxg5 {[%emt 0:01:21]} 19. hxg5 {[%emt 0:01:09]} Nc5 {
[%emt 0:08:58]} 20. Rb1 {[%emt 0:14:25]} Rh4 {[%emt 0:03:54]} 21. Rh2 {[%emt 0:
00:00]} Rxh2 {[%emt 0:00:34]} 22. Kxh2 {[%emt 0:00:05]} d5 {[%emt 0:06:21]} 23.
Bxc5 {[%emt 0:04:30]} Qxc5 {[%emt 0:07:24]} 24. Qg1 {[%emt 0:14:15]} d4 {
[%emt 0:01:31]} 25. Nb3 {[%emt 0:03:29]} Qc7 {[%emt 0:02:33]} 26. f6 {[%emt 0:
00:00]} gxf6 {[%emt 0:01:25]} 27. g6 {[%emt 0:01:56]} Bf8 {[%emt 0:12:57]} 28.
g7 {[%emt 0:01:08]} Bxg7 {[%emt 0:00:25]} 29. Qxg7 {[%emt 0:00:49]} dxc3 {
[%emt 0:02:02]} 30. Qxf6 {[%emt 0:14:20]} Nd7 {[%emt 0:03:53]} 31. Qh8+ {
[%emt 0:01:42]} Ke7 {[%emt 0:01:32]} 32. Qh4+ {[%emt 0:00:08]} Nf6 {[%emt 0:00:
00]} 33. Bg4 {[%emt 0:03:57]} Rg8 {[%emt 0:02:28]} 34. Rf1 {[%emt 0:00:30]} Qd6
{[%emt 0:00:32]} 35. Bf5 {[%emt 0:05:04]} cxb2 {[%emt 0:01:48]} 36. Qf2 {
[%emt 0:00:30]} Bxe4 {[%emt 0:06:00]} 37. Qa7+ {[%emt 0:00:49]} Nd7 {[%emt 0:
00:00]} 38. Bxd7 {[%emt 0:00:29]} Rg2+ {[%emt 0:02:15]} 39. Kh1 Rxc2+ {[%emt 0:
00:00]} 40. Kg1 {[%emt 0:00:25]} Rg2+ {[%emt 0:00:07]} 41. Kh1 {[%emt 0:00:15]}
Rg4+ {[%emt 0:31:32]} 0-1

[Event "44th Chess Olympiad Open 2022"]
[Site "Chennai"]
[Date "2022.08.07"]
[Round "9.70"]
[White "Giasi, Viresh"]
[Black "Khan, Taffin"]
[Result "1/2-1/2"]
[WhiteElo "2006"]
[BlackElo "2019"]
[Annotator "NA"]
[PlyCount "77"]
[EventDate "2022.??.??"]
[TimeControl "60"]

1. e4 {[%emt 0:00:49]} c5 {[%emt 0:00:06]} 2. Nf3 {[%emt 0:00:05]} e6 {[%emt 0:
00:00]} 3. d4 {[%emt 0:01:03]} cxd4 {[%emt 0:00:08]} 4. Nxd4 {[%emt 0:00:12]}
a6 {[%emt 0:00:06]} 5. c4 {[%emt 0:00:47]} Nc6 {[%emt 0:02:06]} 6. Nxc6 {
[%emt 0:00:59]} bxc6 {[%emt 0:02:06]} 7. Bd3 {[%emt 0:00:47]} e5 {[%emt 0:00:
00]} 8. O-O {[%emt 0:00:13]} Nf6 {[%emt 0:00:02]} 9. Be3 {[%emt 0:03:21]} d6 {
[%emt 0:03:34]} 10. Nc3 {[%emt 0:01:12]} Be7 {[%emt 0:00:12]} 11. Na4 {[%emt 0:
00:00]} Rb8 {[%emt 0:03:45]} 12. h3 {[%emt 0:03:13]} d5 {[%emt 0:10:46]} 13.
cxd5 {[%emt 0:04:50]} cxd5 {[%emt 0:00:07]} 14. exd5 {[%emt 0:07:27]} O-O {
[%emt 0:14:24]} 15. Bc4 {[%emt 0:03:01]} Bb7 {[%emt 0:13:46]} 16. Bb6 {[%emt 0:
00:00]} Qd7 {[%emt 0:15:21]} 17. Nc5 {[%emt 0:13:29]} Bxc5 {[%emt 0:00:50]} 18.
Bxc5 {[%emt 0:00:05]} Rfc8 {[%emt 0:00:09]} 19. b4 {[%emt 0:00:11]} a5 {
[%emt 0:00:07]} 20. a3 {[%emt 0:00:18]} Bxd5 {[%emt 0:04:01]} 21. Qe2 {[%emt 0:
00:00]} Qe6 {[%emt 0:03:22]} 22. Bb5 {[%emt 0:13:36]} Ne4 {[%emt 0:08:41]} 23.
Rfc1 {[%emt 0:07:34]} Ng5 {[%emt 0:05:13]} 24. Bc4 {[%emt 0:03:12]} Rc6 {
[%emt 0:05:52]} 25. Bxd5 {[%emt 0:01:20]} Qxd5 {[%emt 0:00:08]} 26. Rd1 {
[%emt 0:02:15]} Qe4 {[%emt 0:01:20]} 27. Qxe4 {[%emt 0:08:16]} Nxe4 {[%emt 0:
00:00]} 28. f3 {[%emt 0:02:05]} Nxc5 {[%emt 0:00:55]} 29. Rac1 {[%emt 0:00:45]}
axb4 {[%emt 0:00:19]} 30. axb4 {[%emt 0:00:02]} Kf8 {[%emt 0:02:43]} 31. bxc5 {
[%emt 0:00:09]} Ke7 {[%emt 0:00:47]} 32. Rd5 {[%emt 0:00:11]} Ke6 {[%emt 0:00:
00]} 33. Rcd1 {[%emt 0:01:17]} Rbc8 {[%emt 0:00:18]} 34. Rd7 {[%emt 0:01:56]}
R8c7 {[%emt 0:01:44]} 35. R1d6+ {[%emt 0:00:09]} Rxd6 {[%emt 0:00:19]} 36. Rxc7
{[%emt 0:00:03]} Rd7 {[%emt 0:01:09]} 37. Rc8 {[%emt 0:00:01]} Ra7 {[%emt 0:00:
00]} 38. Re8+ {[%emt 0:03:51]} Kd5 {[%emt 0:00:53]} 39. Rc8 {[%emt 0:00:09]}
1/2-1/2